bitfinex/quotes_SOLUSD_20240902
["timestamp","ask_amount","ask_price","bid_price","bid_amount"]
[1725244349655,16.497,129.52,129.48,7.7226]
[1725244349953,24.2178,129.52,129.48,7.7226]
[1725244350961,24.2178,129.52,129.47,27.0325]
[1725244351278,7.7221,129.5,129.46,7.7242]
[1725244352174,24.2179,129.52,129.47,7.7236]
[1725244353581,24.2179,129.52,129.48,7.723]
[1725244353780,16.497,129.52,129.48,7.723]
[1725244354081,7.7196,129.54,129.5,7.7218]
[1725244354469,7.7196,129.54,129.49,7.7224]
[1725244354661,7.7203,129.53,129.49,7.7224]
[1725244355176,7.7197,129.54,129.49,7.7224]
[1725244355356,15.9453,129.55,129.48,19.307]
[1725244355357,23.6644,129.55,129.5,7.7217]
[1725244355567,7.7197,129.54,129.5,7.7217]
[1725244356376,7.7204,129.53,129.48,19.307]
[1725244357281,7.7204,129.53,129.49,7.7225]
[1725244360575,7.7204,129.53,129.48,19.307]
[1725244360576,7.7182,129.57,129.53,7.7202]
[1725244360879,20.0,129.57,129.52,19.3011]
[1725244361079,16.484729,129.58,129.55,7.7186]
[1725244361389,16.484729,129.58,129.56,7.7181]
[1725244361390,1.434629,129.58,129.56,7.7181]
[1725244364483,1.434629,129.58,129.57,9.26125822]
[1725244365288,1.434629,129.58,129.57,7.7178]
[1725244366671,1.434629,129.58,129.57,9.26109744]
[1725244366876,1.434629,129.58,129.57,7.7178]
[1725244367290,1.434629,129.58,129.55,7.7189]
[1725244368187,1.434629,129.58,129.56,7.7183]
[1725244368887,1.434629,129.58,129.55,19.297]
[1725244369081,1.434629,129.58,129.57,7.7178]
[1725244370597,1.434629,129.58,129.56,7.7183]
[1725244370795,1.434629,129.58,129.52,19.3011]
[1725244372299,7.718,129.57,129.53,7.72]
[1725244372970,9.151929,129.58,129.53,7.72]
[1725244378400,1.434629,129.58,129.52,19.3011]
[1725244378576,9.151829,129.58,129.54,7.7195]
[1725244380094,1.434629,129.58,129.55,7.7189]
[1725244383010,9.151829,129.58,129.54,27.018]
[1725244383184,1.434629,129.58,129.51,19.3027]
[1725244384317,7.7182,129.57,129.53,7.72]
[1725244384504,9.151829,129.58,129.54,7.7195]
[1725244384811,1.434629,129.58,129.55,7.7188]
[1725244385904,1.434629,129.58,129.54,7.7194]
[1725244386108,9.152029,129.58,129.54,7.7194]
[1725244386798,9.152029,129.58,129.53,19.3002]
[1725244386799,1.434629,129.58,129.49,38.6107]
[1725244387114,1.434629,129.58,129.44,256.68789643]
[1725244387115,7.7213,129.52,129.45,6.2019]
[1725244387411,7.7204,129.53,129.48,7.7231]
[1725244387594,7.7194,129.55,129.5,7.7215]
[1725244388903,7.7197,129.54,129.5,7.7215]
[1725244389481,15.0395,129.56,129.52,7.7206]
[1725244389692,27.7192,129.55,129.51,7.7212]
[1725244389917,27.7192,129.55,129.5,7.7218]
[1725244390477,27.7192,129.55,129.49,27.0283]
[1725244390478,20.0,129.55,129.49,27.0283]
[1725244391207,7.7197,129.54,129.5,7.7219]
[1725244393506,15.0395,129.56,129.53,7.7201]
[1725244394012,15.0395,129.56,129.53,19.2999]
[1725244395607,15.0395,129.56,129.53,27.0199]
[1725244396314,22.758,129.56,129.53,19.2999]
[1725244396788,15.0395,129.56,129.53,19.2999]
[1725244397291,15.0395,129.56,129.53,27.02]
[1725244399686,15.0395,129.56,129.51,7.7212]
[1725244399687,22.7584,129.56,129.51,7.7212]
[1725244401723,7.7191,129.55,129.51,7.7212]
[1725244402016,7.7191,129.55,129.44,271.2556]
[1725244402017,11.02431619,129.54,129.47,19.3084]
[1725244402188,7.722,129.5,129.47,19.3084]
[1725244402519,7.722,129.5,129.45,7.7249]
[1725244402725,7.722,129.5,129.41,19.3176]
[1725244402726,7.7238,129.47,129.41,19.3176]
[1725244403012,7.7233,129.48,129.43,7.7257]
[1725244403418,30.6688,129.52,129.47,7.7232]
[1725244403912,7.7215,129.51,129.47,19.3092]
[1725244404110,30.6688,129.52,129.47,27.0325]
[1725244405184,22.9479,129.52,129.48,7.7231]
[1725244406316,22.9479,129.52,129.49,7.7224]
[1725244407603,22.9479,129.52,129.49,27.0282]
[1725244408011,16.5068,129.52,129.5,7.7217]
[1725244408630,16.5068,129.52,129.49,27.0282]
[1725244409424,16.5068,129.52,129.49,19.3058]
[1725244409798,16.5068,129.52,129.49,27.0281]
[1725244413919,16.5068,129.52,129.49,19.3058]
[1725244415217,16.5068,129.52,129.49,27.0283]
[1725244415428,21.4258,129.55,129.51,7.7214]
[1725244417921,29.1448,129.55,129.51,7.7214]
[1725244418098,7.7199,129.54,129.5,7.7218]
[1725244418302,17.91956168,129.54,129.5,7.7218]
[1725244418719,10.19966168,129.54,129.5,7.7218]
[1725244422697,17.91956168,129.54,129.5,7.7218]
[1725244423427,10.19966168,129.54,129.51,7.7212]
[1725244425607,10.19966168,129.54,129.5,7.7219]
[1725244426334,17.91956168,129.54,129.5,7.7219]
[1725244428620,17.91956168,129.54,129.49,27.0282]
[1725244428828,11.02488003,129.52,129.46,27.0345]
[1725244429033,11.02488003,129.52,129.48,7.7227]
[1725244429212,7.84589,129.53,129.48,7.7227]
[1725244429532,21.55129,129.55,129.51,7.7213]
[1725244429533,29.1449,129.55,129.51,7.7213]
[1725244429701,24.579529,129.58,129.54,7.7193]
[1725244429904,24.579529,129.58,129.53,7.72]
[1725244430737,35.60440903,129.58,129.53,7.72]
[1725244430911,7.96888,129.57,129.53,7.72]
[1725244431637,7.7179,129.57,129.53,7.72]
[1725244431949,16.861929,129.58,129.56,27.0136]
[1725244433249,11.02488003,129.57,129.53,27.0197]
[1725244433418,16.861929,129.58,129.54,7.7191]
[1725244435439,27.88680903,129.58,129.55,7.7186]
[1725244439219,16.861929,129.58,129.55,7.7186]
[1725244439824,16.861929,129.58,129.55,6.7186]
[1725244440020,16.861929,129.58,129.56,7.7182]
[1725244440928,16.861929,129.58,129.55,27.0157]
[1725244442161,16.861929,129.58,129.56,7.7183]
[1725244444063,37.0669096,129.58,129.46,254.8]
[1725244444347,37.0669096,129.58,129.46,11.02488003]
[1725244444348,11.02488003,129.56,129.46,11.02488003]
[1725244444543,0.25098,129.55,129.51,7.7211]
[1725244445034,7.97008,129.55,129.51,7.7211]
[1725244445646,7.7197,129.54,129.5,7.7219]
[1725244446657,7.97018,129.55,129.5,7.7219]
[1725244447037,7.97018,129.55,129.49,19.3057]
[1725244447038,0.25098,129.55,129.51,7.7209]
[1725244447338,0.25098,129.55,129.49,19.3057]
[1725244447339,27.97008,129.55,129.5,7.7219]
[1725244448636,22.4205,129.54,129.5,7.7219]
[1725244451159,22.4205,129.54,129.51,7.7212]
[1725244451664,16.142,129.54,129.51,7.7212]
[1725244452557,16.142,129.54,129.5,7.7219]
[1725244453240,23.8617,129.54,129.5,7.7219]
[1725244453740,27.16688003,129.54,129.46,19.3098]
[1725244453939,7.7213,129.52,129.47,7.7232]
[1725244458958,7.84699,129.51,129.46,27.0337]
[1725244459865,25.02847003,129.52,129.47,7.7234]
[1725244461376,0.12549,129.51,129.46,27.034]
[1725244461763,0.25098,129.51,129.46,27.034]
[1725244462345,7.722,129.5,129.46,19.3098]
[1725244463071,16.621,129.49,129.41,38.6359]
[1725244463289,7.7242,129.47,129.4,33.93098003]
[1725244463486,16.621,129.49,129.42,30.34128003]
[1725244464153,16.621,129.49,129.44,19.3133]
[1725244465272,35.36868003,129.49,129.44,27.0387]
[1725244465468,0.25098,129.48,129.44,27.0387]
[1725244465860,7.97438,129.48,129.44,19.3133]
[1725244469078,16.621,129.49,129.44,20.858361]
[1725244469588,16.621,129.49,129.46,7.7243]
[1725244470177,16.621,129.49,129.44,19.3133]
[1725244470178,16.621,129.49,129.45,7.7248]
[1725244470971,0.25098,129.48,129.45,7.7248]
[1725244471356,16.621,129.49,129.46,7.7241]
[1725244474373,16.621,129.49,129.46,19.3103]
[1725244474595,22.2888,129.52,129.48,7.7232]
[1725244474894,20.0,129.51,129.48,7.7232]
[1725244475458,0.25098,129.5,129.47,7.7237]
[1725244478790,20.0,129.51,129.48,19.3074]
[1725244478959,20.0,129.51,129.48,27.0304]
[1725244480174,22.41429,129.52,129.49,7.7225]
[1725244480377,16.1316,129.52,129.5,27.0263]
[1725244481284,11.02488003,129.55,129.51,7.7214]
[1725244481489,27.66368003,129.55,129.5,19.3045]
[1725244482166,27.66368003,129.55,129.52,19.3014]
[1725244482383,16.6388,129.55,129.53,7.72]
[1725244483603,27.66368003,129.55,129.52,27.022]
[1725244484187,27.66368003,129.55,129.51,7.7213]
[1725244484385,27.66368003,129.55,129.42,44.09952012]
[1725244484386,21.4464,129.5,129.33,16.4301]
[1725244484686,48.74808003,129.48,129.39,11.02488003]
[1725244484900,27.7238,129.47,129.39,11.02488003]
[1725244485261,20.0,129.47,129.39,11.02488003]
[1725244485574,30.0,129.46,129.43,7.726]
[1725244485960,7.725,129.45,129.4,27.0477]
[1725244486193,20.12549,129.47,129.4,27.0477]
[1725244486366,7.84989,129.46,129.41,7.7272]
[1725244486571,7.97538,129.46,129.41,7.7272]
[1725244487380,27.7238,129.47,129.42,7.7266]
[1725244487969,27.7238,129.47,129.41,7.7273]
[1725244488383,7.84989,129.46,129.41,7.7273]
[1725244488597,7.97538,129.46,129.41,7.7273]
[1725244489871,53.61511021,129.45,129.36,19.3257]
[1725244490093,11.02488003,129.42,129.37,7.7297]
[1725244490269,41.02488003,129.44,129.37,7.7297]
[1725244490469,0.25098,129.43,129.37,7.7297]
[1725244490992,7.7301,129.37,129.32,7.7326]
[1725244491180,11.02488003,129.39,129.29,11.02488003]
[1725244491491,0.12549,129.4,129.31,11.02488003]
[1725244491693,7.7297,129.38,129.33,7.7321]
[1725244491898,18.75588003,129.35,129.29,7.734]
[1725244492195,18.75588003,129.35,129.3,7.7337]
[1725244492501,55.12440015,129.31,129.12,6.1638]
[1725244492796,7.7393,129.22,129.16,7.7422]
[1725244493374,11.02488003,129.23,129.16,7.7422]
[1725244493693,0.12549,129.22,129.16,7.7422]
[1725244493891,11.02488003,129.23,129.16,7.7423]
[1725244494098,27.70720551,129.23,129.16,7.7423]
[1725244494291,27.70720551,129.23,129.18,7.741]
[1725244494476,27.70720551,129.25,129.18,19.3523]
[1725244494674,39.75856659,129.3,129.21,7.7393]
[1725244494675,35.44300551,129.27,129.21,7.7393]
[1725244494996,0.25098,129.26,129.21,7.7393]
[1725244495193,0.12549,129.26,129.21,7.7393]
[1725244495398,27.70720551,129.27,129.22,7.7386]
[1725244496201,27.70720551,129.27,129.21,19.3477]
[1725244496374,27.70720551,129.29,129.21,19.3477]
[1725244497301,27.70720551,129.29,129.24,19.3432]
[1725244497496,27.70720551,129.29,129.19,38.7002]
[1725244497497,57.70720551,129.34,129.25,1.54715345]
[1725244497682,65.43880551,129.34,129.27,27.0737]
[1725244497881,65.43880551,129.34,129.28,7.735]
[1725244498100,72.31157773,129.34,129.28,7.735]
[1725244498398,34.57997773,129.32,129.23,19.3439]
[1725244499199,0.25098,129.31,129.23,19.3439]
[1725244499378,7.7334,129.31,129.23,19.3439]
[1725244499586,0.25098,129.3,129.23,19.3439]
[1725244500382,0.25098,129.3,129.25,7.7369]
[1725244500780,34.57997773,129.34,129.26,7.7361]
[1725244500984,20.25098,129.33,129.26,7.7361]
[1725244501413,34.57997773,129.32,129.26,7.7361]
[1725244501691,0.12549,129.31,129.24,7.7369]
[1725244501912,7.7343,129.3,129.24,7.7369]
[1725244502505,0.12549,129.29,129.25,7.7369]
[1725244502680,20.0,129.33,129.26,7.7359]
[1725244502998,20.0,129.33,129.19,73.28017773]
[1725244502999,34.57997773,129.36,129.28,19.3378]
[1725244503201,42.31027773,129.36,129.3,7.7339]
[1725244503696,42.31037773,129.36,129.3,7.7339]
[1725244504286,20.0,129.35,129.3,7.7339]
[1725244504996,42.30917773,129.38,129.32,7.7326]
[1725244505390,42.30917773,129.38,129.33,7.7321]
[1725244505391,6.5981,129.37,129.33,7.7321]
[1725244506497,7.7285,129.39,129.34,7.7315]
[1725244506798,20.0,129.38,129.34,7.7315]
[1725244506997,20.0,129.38,129.32,19.3307]
[1725244506998,27.7292,129.38,129.32,27.0628]
[1725244507198,20.0,129.38,129.32,19.3307]
[1725244507896,20.0,129.38,129.34,7.7315]
[1725244508287,6.4531,129.41,129.34,19.3276]
[1725244508495,6.4531,129.41,129.35,1.5456222]
[1725244509025,6.4531,129.41,129.34,19.3276]
[1725244509196,45.84464761,129.4,129.3,19.334]
[1725244509395,7.73,129.37,129.32,7.7322]
[1725244509602,7.7315,129.34,129.27,58.0168]
[1725244510114,0.12549,129.33,129.29,7.7343]
[1725244510314,7.7315,129.34,129.29,7.7343]
[1725244511106,7.85769,129.33,129.29,7.7343]
[1725244511298,7.7322,129.33,129.29,7.7343]
[1725244512615,0.12549,129.34,129.29,7.7343]
[1725244512802,7.7315,129.34,129.29,7.7343]
[1725244513514,27.731,129.35,129.3,7.7337]
[1725244514410,7.731,129.35,129.3,7.7337]
[1725244515111,0.12549,129.36,129.32,7.7326]
[1725244515291,0.12549,129.37,129.32,7.7326]
[1725244515620,34.57997773,129.38,129.32,7.7326]
[1725244516308,7.7297,129.37,129.33,7.732]
[1725244516512,11.26466988,129.39,129.33,7.732]
[1725244516713,34.57997773,129.4,129.34,7.7315]
[1725244517018,20.0,129.39,129.34,7.7315]
[1725244518003,27.7291,129.39,129.34,7.7315]
[1725244518201,7.7299,129.37,129.33,19.3295]
[1725244518411,7.7311,129.35,129.3,27.0682]
[1725244520408,20.0,129.39,129.32,7.7325]
[1725244520409,7.7304,129.36,129.32,7.7325]
[1725244520707,47.63247818,129.39,129.34,7.7314]
[1725244520708,20.0,129.39,129.34,7.7314]
[1725244520922,20.0,129.39,129.32,19.3312]
[1725244521212,20.0,129.4,129.34,7.7315]
[1725244521420,7.7286,129.39,129.34,7.7315]
[1725244522397,7.7298,129.37,129.32,19.3312]
[1725244522604,7.7298,129.37,129.32,27.0634]
[1725244523600,7.7292,129.38,129.33,7.7317]
[1725244524298,7.7298,129.37,129.33,7.732]
[1725244524513,54.53531965,129.4,129.33,7.732]
[1725244524826,7.7295,129.38,129.33,7.732]
[1725244525308,7.7286,129.39,129.35,7.7308]
[1725244525496,27.7279,129.4,129.35,7.7308]
[1725244525696,14.1805,129.41,129.35,1.54601481]
[1725244525911,14.1805,129.41,129.34,19.3279]
[1725244526324,7.7294,129.38,129.34,19.3279]
[1725244529702,42.26381965,129.4,129.35,7.7305]
[1725244530020,7.7285,129.4,129.34,19.3279]
[1725244531313,7.7285,129.4,129.36,7.7303]
[1725244531506,6.4531,129.41,129.37,7.7293]
[1725244531713,34.53531965,129.44,129.36,19.3252]
[1725244531714,7.7263,129.43,129.38,7.729]
[1725244531924,14.117,129.44,129.39,7.7285]
[1725244533900,11.26466988,129.46,129.4,19.3191]
[1725244534107,22.4079,129.48,129.41,0.90255556]
[1725244534108,7.7243,129.47,129.41,0.90255556]
[1725244534418,34.53531965,129.47,129.37,15.884]
[1725244534622,34.53531965,129.45,129.39,19.3208]
[1725244534951,7.7291,129.38,129.33,7.732]
[1725244535234,7.7299,129.37,129.32,27.0633]
[1725244535526,7.7303,129.36,129.32,19.331]
[1725244535718,7.7298,129.37,129.32,27.0636]
[1725244536131,30.0,129.35,129.32,19.331]
[1725244536532,30.0,129.35,129.32,27.0636]
[1725244537431,30.0,129.35,129.33,7.7321]
[1725244537726,30.0,129.35,129.32,19.331]
[1725244537928,30.0,129.35,129.29,19.3358]
[1725244537929,37.731,129.35,129.29,19.3358]
[1725244538134,30.0,129.35,129.31,7.7333]
[1725244538307,37.7309,129.35,129.31,7.7333]
[1725244538506,30.0,129.35,129.31,7.7333]
[1725244539330,37.7314,129.35,129.3,7.7337]
[1725244539739,7.7314,129.35,129.3,7.7337]
[1725244540347,7.7316,129.34,129.3,7.7337]
[1725244540505,7.7316,129.34,129.29,27.0702]
[1725244540711,30.0,129.33,129.29,19.3358]
[1725244541431,45.3101,129.33,129.29,27.0698]
[1725244541609,45.3101,129.33,129.26,19.3404]
[1725244541610,54.66080965,129.32,129.26,19.3404]
[1725244541933,30.0,129.31,129.26,19.3404]
[1725244542128,34.53531965,129.3,129.23,19.3451]
[1725244542311,42.26981965,129.3,129.25,7.7369]
[1725244542710,30.0,129.29,129.25,7.7369]
[1725244543318,7.7351,129.28,129.23,19.3451]
[1725244543513,7.7351,129.28,129.22,7.7386]
[1725244543514,27.7363,129.27,129.22,7.7386]
[1725244543817,30.0,129.26,129.22,7.7386]
[1725244544509,30.0,129.26,129.2,19.3493]
[1725244544731,7.7377,129.24,129.2,19.3493]
[1725244545138,7.7381,129.23,129.16,19.3546]
[1725244546414,37.7368,129.26,129.16,38.7102]
[1725244546721,30.0,129.26,129.19,7.7404]
[1725244546923,20.0,129.25,129.16,7.742]
[1725244547125,7.7394,129.21,129.15,27.0996]
[1725244547635,13.8238,129.21,129.15,19.3572]
[1725244547834,6.0845,129.21,129.15,19.3572]
[1725244548136,15.6465,129.23,129.2,7.7397]
[1725244548313,20.0,129.22,129.18,7.7406]
[1725244548852,15.6465,129.23,129.2,7.7399]
[1725244549632,15.6465,129.23,129.21,7.7391]
[1725244549946,113.7567346,129.36,129.16,38.7095]
[1725244549947,16.4987,129.27,129.24,7.7374]
[1725244550230,16.4987,129.27,129.23,27.0832]
[1725244551020,6.0845,129.28,129.23,19.3452]
[1725244551339,34.53531965,129.3,129.25,7.7364]
[1725244552237,30.376,129.31,129.26,7.736]
[1725244552438,22.6426,129.31,129.26,7.736]
[1725244553036,22.6426,129.31,129.27,7.7357]
[1725244553336,7.7322,129.33,129.28,7.735]
[1725244555021,20.0,129.32,129.28,7.735]
[1725244556745,7.7322,129.33,129.28,7.735]
[1725244557617,42.39240965,129.34,129.28,7.735]
[1725244557848,0.12549,129.34,129.29,7.7344]
[1725244558013,0.12549,129.34,129.28,7.7349]
[1725244558014,0.25098,129.34,129.28,7.7349]
[1725244559231,20.25098,129.34,129.28,7.7349]
[1725244559561,7.7321,129.33,129.28,7.7349]
[1725244559745,7.7321,129.33,129.29,7.7345]
[1725244560722,7.7321,129.33,129.28,7.735]
[1725244561238,34.53531965,129.32,129.24,25.5402]
[1725244562230,7.7334,129.31,129.26,7.7363]
[1725244563252,34.53531965,129.32,129.21,25.5868]
[1725244563428,7.7346,129.29,129.24,7.7374]
[1725244563631,20.25098,129.31,129.23,27.0823]
[1725244563632,7.7352,129.28,129.23,27.0823]
[1725244564735,7.7365,129.26,129.21,7.7391]
[1725244565047,7.737,129.25,129.21,7.7391]
[1725244566052,7.7365,129.26,129.21,7.7391]
[1725244566358,7.7371,129.25,129.2,27.0892]
[1725244566832,56.20051965,129.28,129.18,21.4677]
[1725244566833,20.0,129.24,129.18,6.2386]
[1725244567032,7.7381,129.23,129.18,7.7406]
[1725244568753,7.7381,129.23,129.19,7.7404]
[1725244568961,7.7377,129.24,129.19,7.7404]
[1725244569940,6.3101,129.28,129.16,38.7095]
[1725244570132,21.7866,129.31,129.19,38.7003]
[1725244570335,21.7866,129.31,129.2,45.0]
[1725244570532,7.7341,129.3,129.25,7.7364]
[1725244571157,29.52,129.31,129.24,19.343]
[1725244571359,20.0,129.3,129.24,19.343]
[1725244571539,7.7343,129.3,129.25,7.7363]
[1725244571739,7.7351,129.28,129.24,27.0803]
[1725244573253,7.7365,129.26,129.22,7.7381]
[1725244573444,7.7365,129.26,129.2,19.349]
[1725244574045,7.7365,129.26,129.21,7.7388]
[1725244574437,7.737,129.25,129.2,19.349]
[1725244575061,7.86299,129.24,129.2,27.0888]
[1725244575258,7.7371,129.25,129.2,27.0888]
[1725244575841,0.12549,129.26,129.17,19.3536]
[1725244575842,34.53531965,129.23,129.17,19.3536]
[1725244576163,7.7405,129.19,129.14,27.1014]
[1725244576764,7.74,129.2,129.14,27.1014]
[1725244578044,7.74,129.2,129.15,7.7428]
[1725244578962,34.53531965,129.23,129.14,19.3584]
[1725244578963,7.7394,129.21,129.16,7.7421]
[1725244580442,7.7402,129.2,129.15,7.7428]
[1725244580968,7.7402,129.2,129.16,7.7421]
[1725244581463,34.53531965,129.23,129.17,19.3543]
[1725244581666,27.7388,129.22,129.17,27.0959]
[1725244581854,20.0,129.21,129.17,27.0959]
[1725244582542,7.7405,129.19,129.14,7.743]
[1725244582743,7.74,129.2,129.15,7.7428]
[1725244583337,7.74,129.2,129.16,7.7422]
[1725244583961,7.74,129.2,129.15,7.7427]
[1725244585761,54.53531965,129.21,129.13,19.3592]
[1725244585762,54.53531965,129.21,129.14,7.7433]
[1725244585940,0.25098,129.2,129.14,7.7433]
[1725244586142,34.53531965,129.16,129.02,44.9308]
[1725244586458,34.53531965,129.16,129.05,7.7488]
[1725244586459,42.28081965,129.11,129.05,7.7488]
[1725244586765,7.7455,129.11,129.06,7.7482]
[1725244587078,7.7455,129.11,129.06,6.2482]
[1725244587363,7.7461,129.1,129.05,7.7483]
[1725244587741,7.7461,129.1,129.04,27.123]
[1725244587961,7.7466,129.09,129.04,27.123]
[1725244588659,7.7459,129.1,129.05,7.7487]
[1725244589257,7.7459,129.1,129.04,19.3736]
[1725244589258,7.7465,129.09,129.04,27.123]
[1725244590161,7.746,129.1,129.05,7.7489]
[1725244594673,40.60101965,129.13,129.06,19.3699]
[1725244594976,34.53531965,129.11,129.06,19.3699]
[1725244595146,34.53531965,129.09,129.03,19.3749]
[1725244595750,7.7476,129.08,129.03,27.1248]
[1725244596051,7.7477,129.07,129.03,27.1248]
[1725244596256,7.7477,129.07,129.03,19.3749]
[1725244596454,7.7471,129.08,129.03,27.125]
[1725244597142,7.7479,129.07,129.03,19.3749]
[1725244597546,7.7503,129.03,128.98,7.7529]
[1725244597749,7.7503,129.03,128.99,1.55025659]
[1725244597965,7.7507,129.02,128.98,7.753]
[1725244598164,7.7507,129.02,128.97,19.384]
[1725244598342,34.53531965,129.03,128.98,1.55038039]
[1725244598541,34.53531965,129.03,128.99,9.30222195]
[1725244599156,34.53531965,129.03,128.99,7.752]
[1725244599360,42.28431965,129.05,129.0,7.7518]
[1725244599554,20.0,129.04,128.99,19.3803]
[1725244599962,20.0,129.04,129.0,7.7519]
[1725244600158,20.0,129.04,129.01,1.55011818]
[1725244600467,27.7499,129.04,128.99,27.1327]
[1725244601155,7.7501,129.03,128.99,27.1327]
[1725244602874,7.7513,129.01,128.96,19.3854]
[1725244603175,57.79091965,129.0,128.95,7.7548]
[1725244603968,30.0,128.98,128.96,7.7542]
[1725244604162,30.0,128.98,128.93,19.3896]
[1725244604582,30.0,128.98,128.95,7.7545]
[1725244604872,30.0,128.98,128.96,7.7542]
[1725244605079,30.0,128.98,128.95,19.3864]
[1725244605375,30.0,128.98,128.97,7.7537]
[1725244606749,7.7505,129.03,128.98,7.7528]
[1725244606976,7.7505,129.03,128.99,7.7524]
[1725244607171,7.7505,129.03,128.98,7.753]
[1725244608375,7.7505,129.03,128.99,7.7523]
[1725244609772,7.7508,129.02,128.98,7.7529]
[1725244610474,7.7501,129.03,128.98,7.7529]
[1725244611578,7.7501,129.03,128.99,7.7524]
[1725244611747,45.48842287,129.04,129.0,7.7518]
[1725244612057,7.7484,129.06,129.01,7.7512]
[1725244612255,7.7484,129.06,129.01,27.1288]
[1725244612456,34.53531965,129.08,129.01,27.1288]
[1725244612457,7.749,129.05,129.01,27.1288]
[1725244612970,7.7483,129.06,129.01,27.1288]
[1725244613360,7.7483,129.06,129.02,7.7507]
[1725244613769,32.71370322,129.09,129.04,7.7494]
[1725244614283,32.71370322,129.09,129.03,19.3745]
[1725244614284,7.7477,129.07,129.03,19.3745]
[1725244614467,40.46070322,129.09,129.04,7.7494]
[1725244614668,32.71370322,129.09,129.04,7.7494]
[1725244615975,20.0,129.08,129.04,7.7494]
[1725244616179,18.70090322,129.07,129.03,19.3745]
[1725244617089,18.70090322,129.07,129.03,27.1245]
[1725244617794,10.95310322,129.07,129.03,27.1245]
[1725244618084,27.7471,129.08,129.03,27.1245]
[1725244619082,7.7481,129.07,129.03,19.3745]
[1725244619286,7.7485,129.06,129.02,7.7505]
[1725244619493,7.7485,129.06,129.01,7.7512]
[1725244619782,7.7485,129.06,129.02,7.7506]
[1725244620583,27.76973402,129.07,129.03,7.7501]
[1725244620792,20.0,129.08,129.03,7.7501]
[1725244620975,20.0,129.08,129.02,7.7505]
[1725244621589,20.0,129.08,129.03,27.1247]
[1725244621784,20.0,129.08,128.99,21.8684]
[1725244622093,7.7495,129.04,129.0,27.1306]
[1725244622263,6.647,129.02,128.93,60.7321]
[1725244622463,6.647,129.02,128.91,27.15]
[1725244622464,97.14943402,129.01,128.91,27.15]
[1725244622793,7.7532,128.98,128.93,7.756]
[1725244623589,7.7532,128.98,128.94,7.7554]
[1725244623765,7.7526,128.99,128.95,7.7548]
[1725244624286,77.76973402,129.01,128.95,7.7548]
[1725244624287,7.752,129.0,128.95,7.7548]
[1725244624491,7.752,129.0,128.96,7.7542]
[1725244625181,7.752,129.0,128.93,19.3896]
[1725244625182,7.752,129.0,128.95,7.7548]
[1725244625379,77.76973402,129.01,128.93,19.3896]
[1725244625380,7.7535,128.98,128.93,27.1452]
[1725244625992,7.7525,129.0,128.94,7.7555]
[1725244626173,7.7525,129.0,128.93,19.3896]
[1725244626174,7.7525,129.0,128.95,7.7548]
[1725244626888,38.70440322,129.01,128.96,7.7542]
[1725244627775,66.47413724,129.01,128.96,7.7542]
[1725244628495,7.7501,129.03,128.99,7.7524]
[1725244628697,7.7496,129.04,128.99,7.7524]
[1725244630171,7.7496,129.04,129.0,7.7518]
[1725244630988,41.78603402,129.05,129.0,7.7518]
[1725244632480,20.0,129.04,129.0,19.3789]
[1725244632687,20.0,129.04,129.01,7.7511]
[1725244633389,6.2673,129.05,129.01,7.7511]
[1725244634006,6.2673,129.05,129.0,19.3789]
[1725244634007,24.96960322,129.05,129.0,27.1306]